fUSD/lending_fUSD_20260107
["ID","MTS","AMOUNT","RATE_DAILY","PERIOD"]
[400740711,1767805845235,-161.58,0.00017699,2]
[400740713,1767805845246,-1343.242,0.00017699,2]
[400740715,1767805845257,-505.0,0.000177,2]
[400740717,1767805845267,-1000.0,0.000177,2]
[400740719,1767805845278,-1208.708,0.00017701,2]
[400740721,1767805845288,-921.093,0.00017701,2]
[400740723,1767805845298,-631.81,0.00017701,2]
[400740725,1767805845309,-4818.0,0.00017701,2]
[400740727,1767805845318,-6551.0,0.00017701,2]
[400740729,1767805845328,-300.0,0.00017721,2]
[400740731,1767805845338,-300.0,0.00017734,2]
[400740733,1767805845348,-25000.0,0.00017759,3]
[400740735,1767805845357,-25000.0,0.00017768,3]
[400740737,1767805845367,-25000.0,0.00017777,3]
[400740740,1767805845376,-3170.6182961,0.00017777,2]
[400740742,1767805845386,-25000.0,0.00017786,3]
[400740744,1767805845396,-25000.0,0.00017794,3]
[400740746,1767805845406,-1000.0,0.000178,2]
[400740748,1767805845415,-3170.61829606,0.00017802,2]
[400740750,1767805845425,-25000.0,0.00017803,3]
[400740752,1767805845434,-500.0,0.00017811,2]
[400740754,1767805845443,-1715.0,0.00017811,2]
[400740756,1767805845456,-1715.0,0.00017812,2]
[400740758,1767805845466,-25000.0,0.00017812,3]
[400740760,1767805845475,-1767.44,0.00017812,2]
[400740762,1767805845485,-3000.0,0.00017812,2]
[400740764,1767805845495,-3000.0,0.00017812,2]
[400740766,1767805845504,-1939.46205,0.0001782,2]
[400740768,1767805845514,-1939.46206,0.0001782,2]
[400740770,1767805845525,-25000.0,0.00017821,3]
[400740772,1767805845535,-3170.61829606,0.00017826,2]
[400740774,1767805845544,-25000.0,0.0001783,3]
[400740776,1767805845554,-1939.46206,0.0001783,2]
[400740778,1767805845564,-587.0,0.00017835,2]
[400740781,1767805845574,-25000.0,0.00017838,3]
[400740783,1767805845584,-25000.0,0.00017847,3]
[400740785,1767805845594,-3170.61829606,0.00017851,2]
[400740787,1767805845604,-200.0,0.00017855,2]
[400740790,1767805845614,-25000.0,0.00017856,3]
[400740793,1767805845624,-200.0,0.00017856,2]
[400740796,1767805845634,-200.0,0.00017856,2]
[400740799,1767805845644,-1939.46206,0.0001786,2]
[400740801,1767805845653,-25000.0,0.00017865,3]
[400740803,1767805845663,-25000.0,0.00017874,3]
[400740805,1767805845673,-3170.61829606,0.00017875,2]
[400740807,1767805845682,-663.93287602,0.00017877,2]
[400740809,1767805845692,-1939.46205,0.0001788,2]
[400740811,1767805845702,-25000.0,0.00017882,3]
[400740813,1767805845712,-500.0,0.0001789,2]
[400740815,1767805845723,-25000.0,0.00017891,3]
[400740817,1767805845733,-25000.0,0.000179,3]
[400740820,1767805845743,-10000.0,0.000179,2]
[400740822,1767805845752,-1735.96841665,0.000179,2]
[400740824,1767805845761,-22279.09260992,0.000179,2]
[400740825,1767805845771,-25000.0,0.000179,3]
[400740828,1767805845780,-1000.0,0.000179,2]
[400740830,1767805845790,-220.75068873,0.000179,2]
[400740832,1767805845800,-1321.13623348,0.000179,2]
[400740834,1767805845809,-951.44310391,0.000179,2]
[400740836,1767805845822,-3170.61829606,0.000179,2]
[400740838,1767805845832,-1939.46206,0.0001791,2]
[400740840,1767805845842,-300.0,0.00017915,2]
[400740842,1767805845852,-300.0,0.00017922,2]
[400740844,1767805845862,-167.14,0.00017935,2]
[400740847,1767805845872,-539.25320404,0.00017948,2]
[400740849,1767805845882,-355.06241977,0.00017948,2]
[400740851,1767805845892,-300.0,0.00017951,2]
[400740853,1767805845902,-300.0,0.00017955,2]
[400740855,1767805845912,-300.0,0.00017958,2]
[400740857,1767805845921,-300.0,0.00017965,2]
[400740859,1767805845931,-1109.90852601,0.0001797,2]
[400740861,1767805845941,-652.2323845,0.0001797,2]
[400740863,1767805845951,-342.93080044,0.0001797,2]
[400740865,1767805845960,-150.0,0.00017973,2]
[400740867,1767805845970,-150.0,0.00017973,2]
[400740869,1767805845980,-151.0,0.00017984,2]
[400740871,1767805845990,-273860.741678,0.00017987,2]
[400740873,1767805845999,-1455.64956121,0.0001799,2]
[400740875,1767805846009,-1455.64956121,0.0001799,2]
[400740877,1767805846019,-300.0,0.00017994,2]
[400740880,1767805846029,-151.0,0.00017997,2]
[400740882,1767805846039,-5271.8073513,0.00017999,2]
[400740884,1767805846049,-1406.3982122,0.00017999,2]
[400740886,1767805846060,-1109.26559334,0.00017999,5]
[400740903,1767805846214,-1109.26559335,0.00017999,5]
[400740906,1767805846223,-400.58303632,0.00017999,2]
[400740908,1767805846233,-300.0,0.00017999,2]
[400740910,1767805846243,-300.0,0.00017999,2]
[400740912,1767805846252,-300.0,0.00017999,2]
[400740913,1767805846261,-666.0,0.00017999,2]
[400740915,1767805846270,-300.0,0.00017999,2]
[400740917,1767805846279,-300.0,0.00017999,2]
[400740919,1767805846288,-666.0,0.00017999,2]
[400740921,1767805846297,-300.0,0.00017999,2]
[400740923,1767805846308,-300.0,0.00017999,2]
[400740925,1767805846317,-666.0,0.00017999,2]
[400740927,1767805846326,-5826.21400436,0.00017999,2]
[400740929,1767805846335,-505215.59723233,0.00018,2]
[400740932,1767805846355,-6005724.56055077,0.00018,2]
[400740939,1767805846407,-18251.50504826,0.00018,2]
[400740941,1767805846418,-186614.79851997,0.00018,2]
[400740946,1767805846457,-7844.52531335,0.00018,2]
[400740948,1767805846468,-3196.65031194,0.00018,2]
[400741070,1767805847607,-183273.92236449,0.00018,2]
[400741073,1767805847620,-1736.33370989,0.00018,2]
[400741077,1767805847656,-4337.20429625,0.00018,2]
[400741079,1767805847670,-6725.39,0.00018,2]
[400741082,1767805847681,-869.24,0.00018,2]
[400741085,1767805847701,-1655.35490122,0.00018,2]
[400741144,1767805848247,-4075.44766994,0.00018,2]
[400741146,1767805848258,-7968.61338269,0.00018,2]
[400741149,1767805848270,-20309.06284727,0.00018,2]
[400741151,1767805848280,-919.39818052,0.00018,2]
[400741158,1767805848337,-8646.00078,0.00018,2]
[400741204,1767805848906,-1.7e-07,0.00018,2]
[400741209,1767805848945,-2280.36403678,0.00018,2]
[400741211,1767805848956,-4540.93902299,0.00018,2]
[400741666,1767805853287,-2279.565,0.00017701,2]
[400741671,1767805853323,-156.435,0.00017701,2]
[400741673,1767805853333,-800.114412,0.00018,2]
[400741766,1767805854221,-275764.31820245,0.00018,2]
[400741768,1767805854237,-150.9974,0.00018,2]
[400741770,1767805854252,-221328.6977612,0.00018,2]
[400741815,1767805854822,-976.71700211,0.00018,2]
[400741850,1767805855144,-9873.73726884,0.00018,2]
[400741860,1767805855226,-5625.55645074,0.00018,2]
[400741872,1767805855335,-179.59844435,0.00018,2]
[400741971,1767805856247,8707.42919839,0.00014787,2]
[400741975,1767805856276,10000.01,0.00014787,2]
[400742036,1767805856841,10000.01,0.00014787,2]
[400742046,1767805856924,10000.01,0.00014787,2]
[400742050,1767805856949,10000.01,0.00014787,2]
[400742054,1767805856973,10000.01,0.00014787,2]
[400742057,1767805856996,10000.01,0.00014787,2]
[400742061,1767805857020,10000.01,0.00014787,2]
[400742689,1767805900159,-746.07369289,0.00014491,2]
[400742690,1767805902811,-242.0811956,0.00014491,2]
[400742694,1767805903814,-192.03704288,0.00014491,2]
[400742695,1767805906068,-328.1886623,0.00014491,2]
[400742696,1767805907923,-195.0,0.00014491,2]
[400742697,1767805909706,-248.0647759,0.00014491,2]
[400742698,1767805911394,-203.37762642,0.00014491,2]
[400742699,1767805913252,-203.43128444,0.00014491,2]
[400742703,1767805914374,-500.0,0.00014491,2]
[400742717,1767805990439,-284.21771957,0.00014491,2]
[400742718,1767805990461,-212.515,0.00014491,2]
[400742719,1767805990483,-195.0,0.00014528,2]
[400742720,1767805990509,-122.52931785,0.00014565,2]
[400742726,1767806016116,-177.47068215,0.00014565,2]
[400742727,1767806016145,-195.0,0.00014639,2]
[400742728,1767806016173,-4255.0686357,0.00014639,2]
[400742729,1767806016440,-744.9313643,0.00014639,2]
[400742730,1767806016469,-300.0,0.00014639,2]
[400742731,1767806028959,998.1,0.00032877,120]
[400742732,1767806044272,-8370.54347054,0.00014687,2]
[400742733,1767806045643,-10000.01,0.00014687,2]
[400742734,1767806047612,-1680.62987846,0.00014687,2]
[400742735,1767806047641,-300.0,0.00014786,2]
[400742736,1767806047672,-150.0,0.00014786,2]
[400742741,1767806081717,1269.99569889,0.00014786,5]
[400742742,1767806101722,300.0,0.00014786,2]
[400742743,1767806101805,1200.0,0.00014786,2]
[400742744,1767806101840,300.0,0.00014786,2]
[400742745,1767806102013,150.0,0.00014786,2]
[400742746,1767806120430,500.0,0.00014786,2]
[400742747,1767806120528,500.0,0.00014786,2]
[400742748,1767806120585,500.0,0.00014786,2]
[400742749,1767806120631,500.0,0.00014786,2]
[400742750,1767806120682,500.0,0.00014786,2]
[400742751,1767806120733,500.0,0.00014786,2]
[400742752,1767806120783,500.0,0.00014786,2]
[400742753,1767806120833,288.75024308,0.00014786,2]
[400742754,1767806120863,211.24975692,0.00014786,2]
[400742755,1767806120910,392.03618439,0.00014786,2]
[400742756,1767806120962,500.0,0.00014786,2]
[400742757,1767806121016,500.0,0.00014786,2]
[400742758,1767806121067,500.0,0.00014786,2]
[400742759,1767806121113,500.0,0.00014786,2]
[400742760,1767806121190,500.0,0.00014786,2]
[400742761,1767806121245,500.0,0.00014786,2]
[400742762,1767806121297,500.0,0.00014786,2]
[400742763,1767806121362,500.0,0.00014786,2]
[400742764,1767806122090,500.0,0.00014786,2]
[400742765,1767806122178,500.0,0.00014786,2]
[400742766,1767806148827,500.0,0.00014786,2]
[400742767,1767806149018,577.50868335,0.00014786,2]
[400742768,1767806161399,300.0,0.00014786,2]
[400742769,1767806162596,1000.0,0.00014687,2]
[400742771,1767806204849,500.0,0.00014786,2]
[400742772,1767806204984,500.0,0.00014786,2]
[400742773,1767806205111,531.52006841,0.00014786,2]
[400742774,1767806230579,151.0,0.00014787,2]
[400742775,1767806231058,151.0,0.00014787,2]
[400742776,1767806231452,151.0,0.00014787,2]
[400742777,1767806231726,-243.55090306,0.00014787,2]
[400742778,1767806231771,34.69530693,0.00014787,2]
[400742779,1767806231795,116.30469307,0.00014787,2]
[400742780,1767806231987,284.8162209,0.00014787,2]
[400742781,1767806233205,-199.97442301,0.00014787,2]
[400742782,1767806237462,-300.0,0.00014787,2]
[400742783,1767806238765,-300.02557716,0.00014787,2]
[400742784,1767806241908,500.0,0.00014787,2]
[400742785,1767806242568,319.82401002,0.00014787,2]
[400742786,1767806247782,8779.06507601,0.00014687,2]
[400742787,1767806297223,299.18939589,0.00032877,120]
[400742788,1767806313536,33933.0,0.00032713,120]
[400742789,1767806321029,-240.47638426,0.00014686,2]
[400742790,1767806343462,404.75,0.00014305,2]
[400742791,1767806500214,-208.2668177,0.00014491,2]
[400742792,1767806504212,-386.98064323,0.00014491,2]
[400742793,1767806507059,-195.0,0.00014491,2]
[400742794,1767806509496,-500.0,0.00014491,2]
[400742795,1767806511187,-281.49733174,0.00014491,2]
[400742796,1767806513914,-163.03828728,0.00014491,2]
[400742797,1767806515080,-163.1260951,0.00014491,2]
[400742798,1767806517929,-238.92681915,0.00014491,2]
[400742799,1767806520843,-304.14728909,0.00014491,2]
[400742800,1767806522241,-72.99471671,0.00014491,2]
[400742801,1767806522265,-155.46096665,0.00014491,2]
[400742804,1767806572583,2050.59579916,0.00014062,2]
[400742805,1767806572605,2213.89420084,0.00014062,2]
[400742806,1767806590703,-14.55103335,0.00014491,2]
[400742807,1767806590726,-136.7451855,0.00014589,2]
[400742808,1767806605377,-113.2548145,0.00014589,2]
[400742809,1767806605780,-204.89421679,0.00014647,2]
[400742810,1767806621118,-45.10578321,0.00014647,2]
[400742811,1767806621140,-143.27870571,0.00014686,2]
[400742812,1767806622594,-156.72129429,0.00014686,2]
[400742813,1767806622617,-140.25156668,0.00014686,2]
[400742814,1767806624897,555.28,0.00014199,2]
[400742815,1767806625295,-1059.74843332,0.00014686,2]
[400742816,1767806625320,-272.0,0.00014686,2]
[400742817,1767806625343,-300.0,0.00014686,2]
[400742818,1767806625368,-195.0,0.00014687,2]
[400742819,1767806625391,-4685.70338709,0.00014687,2]
[400742820,1767806625414,-18627.97679023,0.00014687,2]
[400742821,1767806625437,-256.68249628,0.0001478,2]
[400742822,1767806625460,-150.0,0.00014785,2]
[400742823,1767806625483,-500.0,0.00014786,2]
[400742824,1767806625506,-500.0,0.00014786,2]
[400742825,1767806625528,-500.0,0.00014786,2]
[400742826,1767806625552,-1767.44,0.00014786,2]
[400742827,1767806625575,-502.7457157,0.00014786,2]
[400742828,1767806625598,-500.0,0.00014786,2]
[400742829,1767806625621,-500.0,0.00014786,2]
[400742830,1767806625644,-500.0,0.00014786,2]
[400742831,1767806625668,-500.0,0.00014786,2]
[400742832,1767806625692,-500.0,0.00014786,2]
[400742833,1767806625714,-500.0,0.00014786,2]
[400742834,1767806625737,-500.06843701,0.00014786,2]
[400742835,1767806625760,-607.51343531,0.00014786,2]
[400742836,1767806625786,-500.0,0.00014786,2]
[400742837,1767806625812,-500.0,0.00014786,2]
[400742838,1767806626201,-500.0,0.00014786,2]
[400742839,1767806626231,-500.0,0.00014786,2]
[400742840,1767806626259,-500.0,0.00014786,2]
[400742841,1767806626287,-500.0,0.00014786,2]
[400742842,1767806626314,-289.20361843,0.00014786,2]
[400742843,1767806626341,-500.0,0.00014786,2]
[400742844,1767806626368,-500.0,0.00014786,2]
[400742845,1767806626397,-500.0,0.00014786,2]
[400742846,1767806626424,-500.0,0.00014786,2]
[400742847,1767806626451,-500.0,0.00014786,2]
[400742848,1767806626480,-500.0,0.00014786,2]
[400742849,1767806626506,-500.0,0.00014786,2]
[400742850,1767806626532,-500.0,0.00014786,2]
[400742851,1767806626559,-500.0,0.00014786,2]
[400742852,1767806626586,-500.0,0.00014786,2]
[400742853,1767806626614,-500.0,0.00014786,2]
[400742854,1767806626641,-500.0,0.00014786,2]
[400742855,1767806626672,-500.0,0.00014786,2]
[400742856,1767806626700,-500.0,0.00014786,2]
[400742857,1767806626732,-500.0,0.00014786,2]
[400742858,1767806626758,-500.0,0.00014786,2]
[400742859,1767806626784,-500.0,0.00014786,2]
[400742860,1767806626810,-500.0,0.00014786,2]
[400742861,1767806626834,-20121.92,0.00014786,2]
[400742862,1767806626858,-999.99,0.00014786,2]
[400742863,1767806626882,-151.0,0.00014787,2]
[400742864,1767806626905,-200.0,0.00014787,2]
[400742865,1767806626929,-151.0,0.00014787,2]
[400742866,1767806626952,-151.0,0.00014787,2]
[400742867,1767806626978,-151.0,0.00014787,2]
[400742868,1767806627002,-151.0,0.00014787,2]
[400742869,1767806627026,-151.0,0.00014787,2]
[400742870,1767806627050,-151.0,0.00014787,2]
[400742871,1767806627074,-500.0,0.00014787,2]
[400742872,1767806627097,-151.0,0.00014787,2]
[400742873,1767806627120,-151.0,0.00014787,2]
[400742874,1767806627144,-151.0,0.00014787,2]
[400742875,1767806627167,-151.0,0.00014787,2]
[400742876,1767806627192,-299.99,0.00014787,2]
[400742877,1767806627216,-39999.98,0.00014787,2]
[400742878,1767806627240,-5907.01,0.00014787,2]
[400742879,1767806627263,-150.99,0.00014787,2]
[400742880,1767806627287,-150.99,0.00014787,2]
[400742881,1767806627314,-884294.04768663,0.00014787,2]
[400742882,1767806628186,-198.37055173,0.00014787,2]
[400742883,1767806630346,-167.55686369,0.00014787,2]
[400742884,1767806632216,-294.78439273,0.00014787,2]
[400742885,1767806633332,-164.03,0.00014787,2]
[400742887,1767806680454,-252.1412399,0.00014786,2]
[400742888,1767806683182,-47.8587601,0.00014786,2]
[400742889,1767806683202,-112.30933632,0.00014786,2]
[400742890,1767806686699,-37.69066368,0.00014786,2]
[400742891,1767806686723,-247.1412399,0.00014787,2]
[400742892,1767806689121,-2.8587601,0.00014787,2]
[400742893,1767806689146,-302.37499368,0.00014787,2]
[400742894,1767806692971,-192.28793216,0.00014787,2]
[400742895,1767806694351,1562.21,0.00014764,2]
[400742896,1767806696432,-297.28793216,0.00014787,2]
[400742897,1767806699876,-300.0,0.00014787,2]
[400742898,1767806716865,-300.0,0.00014786,2]
[400742899,1767806716896,-1200.0,0.00014786,2]
[400742900,1767806716927,-195.0,0.00014787,2]
[400742901,1767806719587,-9309.05975692,0.00014787,2]
[400742902,1767806720127,-10000.01,0.00014787,2]
[400742903,1767806722823,-10000.01,0.00014787,2]
[400742904,1767806722983,-5029.12978868,0.00014787,2]
[400742905,1767806722993,-195.0,0.00014845,2]
[400742906,1767806723002,-246.52,0.0001488,2]
[400742907,1767806723012,-500.0,0.00014885,2]
[400742908,1767806723022,-500.0,0.00014885,2]
[400742909,1767806723031,-500.0,0.00014886,2]
[400742910,1767806723041,-500.0,0.00014886,2]
[400742911,1767806723051,-500.0,0.00014886,2]
[400742912,1767806723060,-1487.9729286,0.00014944,2]
[400742913,1767806723069,-500.0,0.00014986,2]
[400742914,1767806723079,-41.38728272,0.00014986,2]
[400742915,1767806723120,-458.61271728,0.00014986,2]
[400742916,1767806723131,-500.0,0.00014986,2]
[400742917,1767806723142,-461.49248906,0.00014986,2]
[400742918,1767806723152,-500.0,0.00014986,2]
[400742919,1767806723162,-474.29981828,0.00014986,2]
[400742920,1767806723172,-500.0,0.00014986,2]
[400742921,1767806723181,-508.99338834,0.00014986,2]
[400742922,1767806723191,-500.0,0.00014986,2]
[400742923,1767806723201,-500.0,0.00014986,2]
[400742924,1767806723211,-419.33594592,0.00014986,2]
[400742925,1767806723221,-500.0,0.00014986,2]
[400742926,1767806723230,-500.0,0.00015025,2]
[400742927,1767806723240,-4177.27564112,0.00015025,2]
[400742928,1767806724549,-4177.29564112,0.00015025,2]
[400742929,1767806724686,-1645.41871776,0.00015025,2]
[400742930,1767806725836,-1645.41871776,0.00015044,2]
[400742931,1767806725849,-6709.17256448,0.00015044,2]
[400742932,1767806759947,442.70724895,8e-05,2]
[400742933,1767806759970,3211.88144979,8e-05,2]
[400742934,1767806759993,3211.88144979,8e-05,2]
[400742935,1767806760014,3211.88144979,8e-05,2]
[400742936,1767806760038,3211.88144979,8e-05,2]
[400742937,1767806760063,3211.88144979,8e-05,2]
[400742938,1767806760091,7045.25148146,8e-05,2]
[400742939,1767806770114,-763.85,0.00011,2]
[400742940,1767806771749,-169.56441531,0.00011,2]
[400742941,1767806773643,-1.88276275,0.00011,2]
[400742942,1767806773667,-181.07296902,0.00013911,2]
[400742945,1767806830143,-13.92703098,0.00013911,2]
[400742946,1767806830169,-295.94492494,0.00013966,2]
[400742947,1767806830198,-92.25604664,0.00014501,2]
[400742948,1767806832691,-165.30030617,0.0001305,2]
[400742949,1767806837773,-173.21574077,0.000101,2]
[400742950,1767806838939,-86.22674075,0.000101,2]
[400742951,1767806838973,-236.62451768,0.0001305,2]
[400742952,1767806840395,-358.93138377,0.0001305,2]
[400742953,1767806844457,-500.0,0.0001305,2]
[400742954,1767806847752,-404.0648565,0.0001305,2]
[400742955,1767806849172,-163.43658367,0.0001305,2]
[400742956,1767806850387,-1955.69748694,0.0001305,2]
[400742957,1767806850418,-852.41,0.00014449,2]
[400742958,1767806850447,-101.48711495,0.00014501,2]
[400742959,1767806850479,-1375.32,0.00014503,2]
[400742960,1767806850508,-150.0,0.00014585,2]
[400742961,1767806850539,-345.82432771,0.00014586,2]
[400742962,1767806850770,-438.5321408,0.00014586,2]
[400742963,1767806850870,-157.04682545,0.00014586,2]
[400742964,1767806850901,-500.0,0.00014586,2]
[400742965,1767806850929,-637.99442616,0.00014586,2]
[400742966,1767806850962,-315.76594939,0.00014586,2]
[400742967,1767806850991,-500.0,0.00014586,2]
[400742968,1767806851022,-500.0,0.00014586,2]
[400742969,1767806851052,-500.0,0.00014586,2]
[400742970,1767806851082,-300.99806298,0.00014586,2]
[400742971,1767806851110,-500.0,0.00014586,2]
[400742972,1767806851139,-347.21442172,0.00014586,2]
[400742973,1767806851172,-500.0,0.00014586,2]
[400742974,1767806851256,-500.0,0.00014586,2]
[400742975,1767806851289,-500.0,0.00014586,2]
[400742976,1767806851322,-500.0,0.00014586,2]
[400742977,1767806851355,-500.0,0.00014586,2]
[400742978,1767806851389,-500.0,0.00014586,2]
[400742979,1767806851423,-500.0,0.00014586,2]
[400742980,1767806851457,-500.0,0.00014586,2]
[400742981,1767806851490,-500.0,0.00014586,2]
[400742982,1767806851524,-500.0,0.00014586,2]
[400742983,1767806851558,-500.0,0.00014586,2]
[400742984,1767806851697,-500.0,0.00014586,2]
[400742985,1767806851733,-500.0,0.00014586,2]
[400742986,1767806852194,-500.0,0.00014586,2]
[400742987,1767806852230,-333.11991617,0.00014586,2]
[400742988,1767806852264,-288.68998873,0.00014586,2]
[400742989,1767806852299,-500.0,0.00014586,2]
[400742991,1767806870985,501.86313919,0.00014,2]
[400742992,1767806881213,300.0,0.00014586,2]
[400742993,1767806884673,3954.52705101,0.0001439,2]
[400742994,1767806884695,5048.70075005,0.0001439,2]
[400742995,1767806888032,1000.0,0.000135,2]
[400742997,1767806892234,3951.30924995,0.00014533,2]
[400742998,1767806892259,9803.91075005,0.00014533,2]
[400743003,1767806909666,2274.6957376,0.0001421,7]
[400743013,1767806935452,-212.8727741,0.00014587,2]
[400743014,1767806937148,-166.66,0.00014587,2]
[400743015,1767806937613,196.09924995,0.00014554,2]
[400743016,1767806937637,7793.85075005,0.00014554,2]
[400743017,1767806938676,-351.97246794,0.00014587,2]
[400743018,1767806941314,300.0,0.00014586,2]
[400743019,1767806958199,193.74316158,0.00014501,2]
[400743058,1767807001238,300.0,0.00014586,2]
[400743059,1767807001458,1200.0,0.00014586,2]
[400743060,1767807001916,150.0,0.00014586,2]
[400743066,1767807006872,62.41608837,0.00014587,2]
[400743067,1767807006895,208.58391163,0.00014587,2]
[400743068,1767807008136,9791.42608837,0.00014501,2]
[400743069,1767807008159,6453.98196749,0.00014501,2]
[400743085,1767807032679,3546.02803251,0.00014494,2]
[400743086,1767807032701,10000.01,0.00014494,2]
[400743087,1767807032724,10000.01,0.00014494,2]
[400743088,1767807032748,1521.77017028,0.00014494,2]
[400743118,1767807038583,-339.49810999,0.00014587,2]
[400743132,1767807038702,-998928.99664797,0.00014587,2]
[400743134,1767807038712,-250.0,0.00014594,2]
[400743136,1767807038721,-500.0,0.00014601,2]
[400743138,1767807038730,-250.0,0.0001467,2]
[400743140,1767807038739,-1000.0,0.00014687,2]
[400743142,1767807038748,-1000.0,0.00014697,2]
[400743144,1767807038762,-151.0,0.00014778,2]
[400743146,1767807038771,-151.0,0.00014778,2]
[400743148,1767807038780,-151.0,0.00014778,2]
[400743150,1767807038790,-151.0,0.00014778,2]
[400743152,1767807038800,-151.0,0.00014778,2]
[400743154,1767807038809,-151.0,0.00014778,2]
[400743156,1767807038818,-151.0,0.00014778,2]
[400743157,1767807038827,-151.0,0.00014778,2]
[400743159,1767807038838,-151.0,0.00014778,2]
[400743161,1767807038847,-151.0,0.00014778,2]
[400743163,1767807038857,-151.0,0.00014778,2]
[400743164,1767807038866,-500.0,0.00014786,2]
[400743166,1767807038876,-500.0,0.00014786,2]
[400743168,1767807038885,-509.41321763,0.00014786,2]
[400743170,1767807038895,-500.0,0.00014786,2]
[400743171,1767807038904,-500.0,0.00014786,2]
[400743173,1767807038913,-500.0,0.00014786,2]
[400743175,1767807038923,-500.0,0.00014786,2]
[400743177,1767807038933,-534.92861577,0.00014786,2]
[400743179,1767807038943,-500.0,0.00014786,2]
[400743180,1767807038952,-500.0,0.00014786,2]
[400743182,1767807038961,-500.0,0.00014786,2]
[400743184,1767807038971,-25067.81820279,0.00014872,2]
[400743186,1767807038980,-16245.40805579,0.00014879,2]
[400743188,1767807038989,-5014.92,0.00014999,2]
[400743189,1767807038998,-2045.01198527,0.00015,2]
[400743191,1767807039008,-1207.91998562,0.00015,2]
[400743193,1767807039017,-7500.65566742,0.00015,2]
[400743195,1767807039028,-500.0,0.00015025,2]
[400743197,1767807039038,-240.62620329,0.00015043,2]
[400743198,1767807039047,-9999.99,0.00015044,2]
[400743200,1767807039058,-200.0,0.00015044,2]
[400743202,1767807039067,-1767.44,0.0001506,2]
[400743204,1767807039078,-500.0,0.00015072,2]
[400743206,1767807039088,-500.0,0.00015072,2]
[400743208,1767807039098,-500.0,0.00015072,2]
[400743209,1767807039107,-500.0,0.00015072,2]
[400743211,1767807039117,-500.0,0.00015073,2]
[400743213,1767807039127,-500.0,0.00015073,2]
[400743215,1767807039137,-500.0,0.00015073,2]
[400743217,1767807039147,-500.0,0.00015073,2]
[400743219,1767807039156,-166.49390426,0.00015073,2]
[400743220,1767807039165,-224.66209336,0.00015073,2]
[400743222,1767807039175,-500.0,0.00015073,2]
[400743224,1767807039184,-164.10183588,0.00015073,2]
[400743226,1767807039194,-500.0,0.00015073,2]
[400743228,1767807039203,-442.83023798,0.00015073,2]
[400743230,1767807039213,-535.8717523,0.00015073,2]
[400743231,1767807039223,-500.0,0.00015073,2]
[400743233,1767807039233,-552.50710843,0.00015073,2]
[400743235,1767807039241,-500.0,0.00015073,2]
[400743237,1767807039250,-500.0,0.00015073,2]
[400743239,1767807039259,-500.0,0.00015073,2]
[400743241,1767807039269,-500.0,0.00015073,2]
[400743243,1767807039278,-161.8794398,0.00015073,2]
[400743244,1767807039287,-500.0,0.00015073,2]
[400743246,1767807039297,-500.0,0.00015073,2]
[400743248,1767807039306,-536.66734105,0.00015073,2]
[400743250,1767807039316,-538.59757642,0.00015073,2]
[400743252,1767807039327,-500.0,0.00015073,2]
[400743254,1767807039347,-500.0,0.00015073,2]
[400743256,1767807039357,-500.0,0.00015073,2]
[400743257,1767807039365,-500.0,0.00015073,2]
[400743259,1767807039374,-500.0,0.00015073,2]
[400743261,1767807039384,-500.0,0.00015073,2]